[Event "Tatra Limba Master 2022"]
[Site "Poronin"]
[Date "2022.01.08"]
[Round "5.10"]
[White "Kozlowski, Franciszek"]
[Black "Gepfert, Cyprian"]
[Result "1/2-1/2"]
[ECO "A48"]
[WhiteElo "1523"]
[BlackElo "1743"]
[Annotator "NA RC"]
[PlyCount "83"]
[EventDate "2022.01.07"]
[EventType "swiss"]
[EventCountry "POL"]
[SourceTitle "playchess.com"]
[Source "ChessBase"]
[SourceQuality "1"]
[TimeControl "5400+30"]

1. d4 {[%emt 0:00:03]} Nf6 {[%emt 0:00:05]} 2. Nf3 {[%emt 0:00:06]} g6 {[%emt 0:00:13]} 3. Bg5 {[%emt 0:00:11]} Bg7 {[%emt 0:00:13]} 4. c3 {[%emt 0:00:15]} d5 {[%emt 0:00:29]} 5. Nbd2 {[%emt 0:01:38]} Nbd7 {[%emt 0:01:48]} 6. e3 {[%emt 0:01:07]} O-O {[%emt 0:00:26]} 7. Rc1 {[%emt 0:00:54]} c5 {[%emt 0:01:42]} 8. Bd3 {[%emt 0:01:02]} b6 {[%emt 0:01:37]} 9. e4 {[%emt 0:01:36]} dxe4 {[%emt 0:01:19]} 10. Nxe4 {[%emt 0:01:32]} Bb7 {[%emt 0:02:24]} 11. Nxf6+ {[%emt 0:01:55]} exf6 {[%emt 0:02:19]} 12. Be3 {[%emt 0:00:44]} cxd4 {[%emt 0:01:30]} 13. cxd4 {[%emt 0:01:31]} f5 {[%emt 0:01:46]} 14. O-O {[%emt 0:01:10]} Nf6 {[%emt 0:00:32]} 15. Bc4 {[%emt 0:04:50]} Ng4 {[%emt 0:05:17]} 16. h3 {[%emt 0:01:25]} Nxe3 {[%emt 0:00:25]} 17. fxe3 {[%emt 0:00:11]} Qd6 {[%emt 0:04:28]} 18. Qb3 {[%emt 0:02:34]} Rad8 {[%emt 0:03:51]} 19. Qa3 {[%emt 0:08:06]} Qxa3 {[%emt 0:00:38]} 20. bxa3 {[%emt 0:00:10]} Bd5 {[%emt 0:02:47]} 21. Bb3 {[%emt 0:03:43]} Rd7 {[%emt 0:01:28]} 22. Rc2 {[%emt 0:02:23]} Re8 {[%emt 0:01:26]} 23. Ba4 {[%emt 0:03:17]} Rde7 {[%emt 0:02:26]} 24. Bxe8 {[%emt 0:01:04]} Rxe8 {[%emt 0:00:05]} 25. Kf2 {[%emt 0:03:21]} f4 {[%emt 0:02:39]} 26. exf4 {[%emt 0:01:00]} Bxf3 {[%emt 0:00:13]} 27. Kxf3 {[%emt 0:00:31]} Bxd4 {[%emt 0:00:06]} 28. Re2 {[%emt 0:02:44]} Rc8 {[%emt 0:00:14]} 29. Kg3 {[%emt 0:00:26]} a5 {[%emt 0:01:21]} 30. Rf3 {[%emt 0:00:29]} Bc5 {[%emt 0:00:20]} 31. Rd3 {[%emt 0:00:33]} Kg7 {[%emt 0:00:39]} 32. Kf3 {[%emt 0:00:10]} h5 {[%emt 0:00:11]} 33. Rc2 {[%emt 0:03:56]} Re8 {[%emt 0:00:28]} 34. Re2 {[%emt 0:00:33]} Rc8 {[%emt 0:00:13]} 35. g4 hxg4+ {[%emt 0:00:39]} 36. Kxg4 {[%emt 0:13:38]} Rh8 {[%emt 0:00:30]} 37. f5 {[%emt 0:01:09]} gxf5+ {[%emt 0:05:16]} 38. Kxf5 {[%emt 0:00:18]} Rh5+ {[%emt 0:02:31]} 39. Kg4 {[%emt 0:00:44]} Rh6 {[%emt 0:00:11]} 40. Rg2 {[%emt 0:04:16]} Be7 {[%emt 0:11:09]} 41. Kf5+ {[%emt 0:04:19]} Kf8 {[%emt 0:01:23]} 42. Rc3 1/2-1/2

[Event "Tatra Limba Master 2022"]
[Site "Poronin"]
[Date "2022.01.08"]
[Round "5.11"]
[White "Radzimski, Antoni"]
[Black "Liskiewicz, Jakub"]
[Result "0-1"]
[ECO "B06"]
[WhiteElo "1613"]
[BlackElo "1598"]
[Annotator "NA RC"]
[PlyCount "60"]
[EventDate "2022.01.07"]
[EventType "swiss"]
[EventCountry "POL"]
[SourceTitle "playchess.com"]
[Source "ChessBase"]
[SourceQuality "1"]
[TimeControl "5400+30"]

1. e4 {[%emt 0:00:01]} g6 {[%emt 0:00:08]} 2. d4 {[%emt 0:00:06]} Bg7 {[%emt 0:00:07]} 3. Nc3 {[%emt 0:00:37]} d6 {[%emt 0:00:12]} 4. f4 {[%emt 0:00:19]} Na6 {[%emt 0:00:21]} 5. Nf3 {[%emt 0:00:35]} c6 {[%emt 0:00:21]} 6. a3 {[%emt 0:00:21]} Nc7 {[%emt 0:00:15]} 7. Bd3 {[%emt 0:00:36]} d5 {[%emt 0:01:06]} 8. e5 {[%emt 0:01:19]} Nh6 {[%emt 0:02:12]} 9. h3 {[%emt 0:02:49]} Bf5 {[%emt 0:04:15]} 10. g4 {[%emt 0:02:12]} Bxd3 {[%emt 0:00:15]} 11. Qxd3 {[%emt 0:00:19]} Qd7 {[%emt 0:02:28]} 12. Be3 {[%emt 0:01:34]} f6 {[%emt 0:08:40]} 13. O-O-O {[%emt 0:01:50]} O-O-O {[%emt 0:00:57]} 14. Na4 {[%emt 0:03:47]} b6 {[%emt 0:03:29]} 15. Nc3 {[%emt 0:06:58]} Kb7 {[%emt 0:06:03]} 16. a4 {[%emt 0:10:04]} f5 {[%emt 0:03:36]} 17. g5 {[%emt 0:01:14]} Nf7 {[%emt 0:00:15]} 18. a5 {[%emt 0:00:35]} e6 {[%emt 0:08:02]} 19. Na4 {[%emt 0:04:11]} Bf8 {[%emt 0:09:15]} 20. Nd2 {[%emt 0:04:03]} c5 {[%emt 0:06:27]} 21. axb6 {[%emt 0:21:14]} c4 {[%emt 0:05:00]} 22. Nxc4 {[%emt 0:09:07]} dxc4 {[%emt 0:06:38]} 23. Qxc4 {[%emt 0:00:07]} Nd5 {[%emt 0:00:15]} 24. Nc5+ {[%emt 0:00:37]} Bxc5 {[%emt 0:00:09]} 25. dxc5 {[%emt 0:00:06]} axb6 {[%emt 0:02:01]} 26. cxb6 {[%emt 0:05:13]} Ra8 {[%emt 0:04:37]} 27. Qd4 {[%emt 0:05:07]} Rhc8 {[%emt 0:08:30]} 28. Qd3 {[%emt 0:04:51]} Qc6 {[%emt 0:02:49]} 29. Rh2 {[%emt 0:03:12]} Ra1+ {[%emt 0:01:21]} 30. Kd2 {[%emt 0:00:19]} Qxc2+ {[%emt 0:01:07]} 0-1

[Event "Tatra Limba Master 2022"]
[Site "Poronin"]
[Date "2022.01.09"]
[Round "6.4"]
[White "Zielonka, Adam"]
[Black "Bartoszczuk, Adam"]
[Result "1/2-1/2"]
[ECO "A10"]
[WhiteElo "1862"]
[BlackElo "1380"]
[Annotator "NA RC"]
[PlyCount "41"]
[EventDate "2022.01.07"]
[EventType "swiss"]
[EventCountry "POL"]
[SourceTitle "playchess.com"]
[Source "ChessBase"]
[SourceQuality "1"]
[TimeControl "5400+30"]

1. c4 {[%emt 0:00:02]} g6 {[%emt 0:00:08]} 2. Nc3 {[%emt 0:00:30]} Bg7 {[%emt 0:00:22]} 3. g3 {[%emt 0:00:06]} e5 {[%emt 0:00:40]} 4. Bg2 {[%emt 0:00:04]} d6 {[%emt 0:00:12]} 5. e3 {[%emt 0:00:46]} Ne7 {[%emt 0:00:10]} 6. Nge2 {[%emt 0:00:04]} O-O {[%emt 0:01:09]} 7. O-O {[%emt 0:00:05]} f5 $14 {[%emt 0:03:21]} 8. d4 {[%emt 0:00:23]} e4 {[%emt 0:07:02]} 9. b4 {[%emt 0:03:47]} c6 {[%emt 0:11:13]} 10. Qb3 {[%emt 0:13:24]} Kh8 {[%emt 0:01:37]} 11. Bb2 {[%emt 0:06:16]} Be6 {[%emt 0:05:13]} 12. a4 {[%emt 0:01:27]} Nd7 {[%emt 0:04:58]} 13. Rfd1 {[%emt 0:02:35]} Bf7 {[%emt 0:02:21]} 14. a5 {[%emt 0:05:18]} a6 {[%emt 0:04:43]} 15. d5 {[%emt 0:12:13]} Ne5 {[%emt 0:06:13]} 16. Na4 {[%emt 0:00:31]} Qc7 {[%emt 0:04:31]} 17. Nb6 {[%emt 0:03:31]} Rad8 {[%emt 0:00:40]} 18. Rac1 {[%emt 0:07:18]} Nc8 {[%emt 0:02:41]} 19. Nxc8 {[%emt 0:06:05]} Rxc8 {[%emt 0:00:40]} 20. h4 {[%emt 0:04:54]} Kg8 {[%emt 0:02:36]} 21. Nf4 1/2-1/2

[Event "Tatra Limba Master 2022"]
[Site "Poronin"]
[Date "2022.01.09"]
[Round "6.8"]
[White "Wysocki, Mateusz"]
[Black "Reichel, Lukasz"]
[Result "1/2-1/2"]
[ECO "B90"]
[WhiteElo "1848"]
[BlackElo "1748"]
[Annotator "NA RC"]
[PlyCount "66"]
[EventDate "2022.01.07"]
[EventType "swiss"]
[EventCountry "POL"]
[SourceTitle "playchess.com"]
[Source "ChessBase"]
[SourceQuality "1"]
[TimeControl "5400+30"]

1. e4 {[%emt 0:00:02]} c5 {[%emt 0:01:15]} 2. Nf3 {[%emt 0:00:40]} d6 {[%emt 0:00:05]} 3. d4 {[%emt 0:00:16]} cxd4 {[%emt 0:00:04]} 4. Nxd4 {[%emt 0:00:27]} Nf6 {[%emt 0:00:05]} 5. Nc3 {[%emt 0:00:08]} a6 {[%emt 0:00:05]} 6. Be3 {[%emt 0:00:22]} e5 {[%emt 0:00:06]} 7. Nb3 $11 {[%emt 0:00:05]} Be6 {[%emt 0:00:34]} 8. Qd2 {[%emt 0:00:09]} Nbd7 {[%emt 0:00:42]} 9. f3 {[%emt 0:01:15]} b5 {[%emt 0:00:40]} 10. O-O-O {[%emt 0:02:41]} Nb6 {[%emt 0:07:57]} 11. Kb1 {[%emt 0:10:08]} Nc4 {[%emt 0:22:40]} 12. Bxc4 {[%emt 0:01:07]} bxc4 {[%emt 0:00:01]} 13. Nc1 {[%emt 0:00:08]} Qa5 {[%emt 0:09:34]} 14. Nd5 {[%emt 0:12:17]} Qxd2 {[%emt 0:01:17]} 15. Nxf6+ {[%emt 0:00:26]} gxf6 {[%emt 0:03:00]} 16. Rxd2 {[%emt 0:00:28]} f5 {[%emt 0:03:38]} 17. exf5 {[%emt 0:00:21]} Bxf5 {[%emt 0:00:06]} 18. Ne2 {[%emt 0:00:14]} Be7 {[%emt 0:06:08]} 19. Nc3 {[%emt 0:02:23]} Be6 {[%emt 0:01:01]} 20. Nd5 {[%emt 0:04:46]} Bxd5 {[%emt 0:00:08]} 21. Rxd5 {[%emt 0:00:01]} Rg8 {[%emt 0:06:53]} 22. g3 {[%emt 0:02:32]} Kd7 {[%emt 0:04:28]} 23. b3 {[%emt 0:03:29]} cxb3 {[%emt 0:07:34]} 24. axb3 {[%emt 0:01:08]} Ke6 {[%emt 0:00:39]} 25. Rhd1 {[%emt 0:01:49]} f5 {[%emt 0:02:06]} 26. Bb6 {[%emt 0:05:11]} Rgc8 {[%emt 0:03:09]} 27. Kb2 {[%emt 0:07:56]} Rab8 {[%emt 0:01:33]} 28. Bf2 {[%emt 0:01:06]} Rb5 {[%emt 0:03:19]} 29. c4 {[%emt 0:03:32]} Rb7 {[%emt 0:02:55]} 30. Ka3 {[%emt 0:02:19]} Rcb8 {[%emt 0:02:05]} 31. R1d3 {[%emt 0:03:47]} Rc8 {[%emt 0:01:21]} 32. Ka4 {[%emt 0:03:51]} Rc6 {[%emt 0:00:26]} 33. Rd1 {[%emt 0:00:30]} Bf6 {[%emt 0:03:24]} 1/2-1/2

[Event "Tatra Limba Master 2022"]
[Site "Poronin"]
[Date "2022.01.09"]
[Round "6.9"]
[White "Mroz, Lena"]
[Black "Kozlowski, Franciszek"]
[Result "1-0"]
[ECO "C43"]
[WhiteElo "1835"]
[BlackElo "1523"]
[Annotator "NA RC"]
[PlyCount "47"]
[EventDate "2022.01.07"]
[EventType "swiss"]
[EventCountry "POL"]
[SourceTitle "playchess.com"]
[Source "ChessBase"]
[SourceQuality "1"]
[TimeControl "5400+30"]

1. e4 {[%emt 0:00:01]} e5 {[%emt 0:00:08]} 2. Nf3 {[%emt 0:00:09]} Nf6 {[%emt 0:00:03]} 3. d4 {[%emt 0:00:15]} Nxe4 {[%emt 0:02:29]} 4. Bd3 {[%emt 0:00:22]} d5 {[%emt 0:02:55]} 5. Nxe5 {[%emt 0:00:12]} Bd6 {[%emt 0:05:39]} 6. O-O {[%emt 0:01:13]} O-O {[%emt 0:07:30]} 7. c4 {[%emt 0:00:28]} c6 {[%emt 0:01:53]} 8. Nc3 {[%emt 0:00:30]} Bxe5 {[%emt 0:02:55]} 9. dxe5 {[%emt 0:10:16]} Nxc3 {[%emt 0:01:54]} 10. bxc3 {[%emt 0:02:10]} dxc4 {[%emt 0:01:15]} 11. Bxh7+ {[%emt 0:36:21]} Kxh7 {[%emt 0:00:48]} 12. Qh5+ {[%emt 0:00:01]} Kg8 {[%emt 0:00:11]} 13. Ba3 {[%emt 0:00:26]} c5 {[%emt 0:12:07]} 14. Bxc5 {[%emt 0:01:52]} Re8 {[%emt 0:00:26]} 15. Rad1 {[%emt 0:00:28]} Qa5 {[%emt 0:01:55]} 16. Bb4 {[%emt 0:08:13]} g6 {[%emt 0:07:54]} 17. Qg5 {[%emt 0:01:06]} Qb5 {[%emt 0:02:18]} 18. Be7 {[%emt 0:04:19]} Rxe7 {[%emt 0:09:26]} 19. Qxe7 {[%emt 0:01:41]} Nd7 {[%emt 0:06:39]} 20. e6 {[%emt 0:04:49]} fxe6 {[%emt 0:00:31]} 21. Qxe6+ {[%emt 0:00:08]} Kg7 {[%emt 0:00:59]} 22. Qe7+ {[%emt 0:00:50]} Kg8 {[%emt 0:00:49]} 23. Qe8+ {[%emt 0:03:00]} Kg7 {[%emt 0:00:11]} 24. Rfe1 {[%emt 0:00:07]} 1-0

[Event "Tatra Limba Master 2022"]
[Site "Poronin"]
[Date "2022.01.09"]
[Round "6.10"]
[White "Gepfert, Cyprian"]
[Black "Rekuc, Patryk"]
[Result "0-1"]
[ECO "B32"]
[WhiteElo "1743"]
[BlackElo "1662"]
[Annotator "NA RC"]
[PlyCount "76"]
[EventDate "2022.01.07"]
[EventType "swiss"]
[EventCountry "POL"]
[SourceTitle "playchess.com"]
[Source "ChessBase"]
[SourceQuality "1"]
[TimeControl "5400+30"]

1. e4 {[%emt 0:00:16]} c5 {[%emt 0:00:06]} 2. Nf3 {[%emt 0:00:04]} Nc6 {[%emt 0:00:05]} 3. d4 {[%emt 0:00:06]} cxd4 {[%emt 0:00:05]} 4. Nxd4 {[%emt 0:00:03]} e5 {[%emt 0:00:05]} 5. Nb5 {[%emt 0:00:08]} d6 {[%emt 0:00:06]} 6. c4 {[%emt 0:00:10]} Be6 {[%emt 0:00:05]} 7. N1c3 {[%emt 0:00:17]} a6 {[%emt 0:00:07]} 8. Na3 {[%emt 0:00:10]} Nf6 {[%emt 0:00:23]} 9. Nc2 {[%emt 0:00:51]} Rc8 {[%emt 0:00:08]} 10. Be2 {[%emt 0:02:37]} Be7 {[%emt 0:03:44]} 11. O-O {[%emt 0:00:10]} O-O {[%emt 0:00:11]} 12. Ne3 {[%emt 0:08:14]} Na5 {[%emt 0:06:14]} 13. Qa4 {[%emt 0:11:11]} Bd7 {[%emt 0:02:07]} 14. Qc2 {[%emt 0:04:14]} b5 {[%emt 0:04:15]} 15. cxb5 {[%emt 0:03:46]} axb5 {[%emt 0:02:33]} 16. b4 {[%emt 0:00:14]} Nc6 {[%emt 0:00:13]} 17. Rb1 {[%emt 0:07:33]} Nd4 {[%emt 0:00:36]} 18. Qd2 {[%emt 0:08:04]} Rxc3 {[%emt 0:00:06]} 19. Bd3 {[%emt 0:00:27]} Rc8 {[%emt 0:00:21]} 20. Bb2 {[%emt 0:00:16]} Qb6 {[%emt 0:00:20]} 21. Kh1 {[%emt 0:01:21]} Be6 {[%emt 0:06:52]} 22. Nf5 {[%emt 0:02:41]} Nxf5 {[%emt 0:01:21]} 23. exf5 {[%emt 0:00:05]} Bxa2 {[%emt 0:01:06]} 24. Rbe1 {[%emt 0:01:18]} Bc4 {[%emt 0:00:18]} 25. f4 {[%emt 0:00:17]} Rfd8 {[%emt 0:09:20]} 26. Rf3 {[%emt 0:03:08]} e4 {[%emt 0:04:28]} 27. Bxe4 {[%emt 0:01:37]} d5 {[%emt 0:02:07]} 28. Bb1 {[%emt 0:00:55]} Ne4 {[%emt 0:00:50]} 29. Qd1 {[%emt 0:04:35]} Bxb4 {[%emt 0:00:39]} 30. Bd4 {[%emt 0:00:23]} Bc5 {[%emt 0:00:33]} 31. Bxg7 {[%emt 0:00:51]} Kxg7 {[%emt 0:00:42]} 32. Bxe4 {[%emt 0:02:22]} dxe4 {[%emt 0:02:07]} 33. Rg3+ {[%emt 0:00:04]} Kh8 {[%emt 0:00:06]} 34. Qh5 {[%emt 0:01:01]} Rg8 {[%emt 0:00:59]} 35. Rh3 {[%emt 0:00:26]} Rg7 {[%emt 0:01:01]} 36. Qh4 {[%emt 0:02:35]} Bf2 {[%emt 0:00:58]} 37. g3 {[%emt 0:06:18]} e3 {[%emt 0:00:35]} 38. Kg2 {[%emt 0:00:54]} Qc6# {[%emt 0:00:06]} 0-1

[Event "Tatra Limba Master 2022"]
[Site "Poronin"]
[Date "2022.01.09"]
[Round "6.11"]
[White "Golis, Wiktor"]
[Black "Radzimski, Antoni"]
[Result "0-1"]
[ECO "C77"]
[WhiteElo "1553"]
[BlackElo "1613"]
[Annotator "NA RC"]
[PlyCount "90"]
[EventDate "2022.01.07"]
[EventType "swiss"]
[EventCountry "POL"]
[SourceTitle "playchess.com"]
[Source "ChessBase"]
[SourceQuality "1"]
[TimeControl "5400+30"]

1. e4 {[%emt 0:00:02]} e5 {[%emt 0:00:06]} 2. Nf3 {[%emt 0:00:04]} Nc6 {[%emt 0:00:09]} 3. Bb5 {[%emt 0:00:06]} a6 {[%emt 0:00:06]} 4. Ba4 {[%emt 0:00:04]} Nf6 {[%emt 0:00:22]} 5. d3 {[%emt 0:00:12]} b5 {[%emt 0:00:31]} 6. Bb3 {[%emt 0:00:05]} Be7 {[%emt 0:00:54]} 7. Nc3 {[%emt 0:01:16]} d6 {[%emt 0:01:58]} 8. h3 {[%emt 0:00:08]} O-O {[%emt 0:03:56]} 9. O-O {[%emt 0:03:35]} Na5 {[%emt 0:02:22]} 10. Re1 {[%emt 0:03:26]} c5 {[%emt 0:04:28]} 11. Bg5 {[%emt 0:07:10]} Nxb3 {[%emt 0:01:36]} 12. axb3 {[%emt 0:01:47]} Be6 {[%emt 0:03:21]} 13. Bxf6 {[%emt 0:07:45]} Bxf6 {[%emt 0:00:15]} 14. Ne2 {[%emt 0:00:25]} g6 {[%emt 0:05:03]} 15. c3 {[%emt 0:02:27]} Bg7 {[%emt 0:00:47]} 16. d4 {[%emt 0:12:54]} Qc7 {[%emt 0:03:12]} 17. d5 {[%emt 0:12:10]} Bd7 {[%emt 0:01:30]} 18. Ng3 {[%emt 0:00:30]} Qd8 {[%emt 0:01:21]} 19. Qd2 {[%emt 0:16:47]} h6 {[%emt 0:03:12]} 20. Rad1 {[%emt 0:08:34]} f5 {[%emt 0:00:52]} 21. exf5 {[%emt 0:00:58]} gxf5 {[%emt 0:00:29]} 22. Kh1 {[%emt 0:05:40]} Kh7 {[%emt 0:02:31]} 23. Qc1 {[%emt 0:03:38]} e4 {[%emt 0:05:33]} 24. Nh2 {[%emt 0:01:06]} Be5 {[%emt 0:01:28]} 25. Ngf1 {[%emt 0:03:31]} Rg8 {[%emt 0:01:23]} 26. f4 {[%emt 0:01:29]} Bf6 {[%emt 0:00:21]} 27. Qe3 {[%emt 0:00:49]} h5 {[%emt 0:01:44]} 28. Qe2 {[%emt 0:01:12]} Qe8 {[%emt 0:01:36]} 29. Ne3 {[%emt 0:01:02]} Bh4 30. Rg1 {[%emt 0:00:39]} Bg3 {[%emt 0:01:35]} 31. Nhf1 {[%emt 0:05:22]} Bxf4 {[%emt 0:01:04]} 32. Qf2 {[%emt 0:01:00]} Bxe3 {[%emt 0:00:44]} 33. Nxe3 {[%emt 0:00:35]} Qe5 {[%emt 0:01:06]} 34. Rdf1 {[%emt 0:00:19]} Raf8 {[%emt 0:00:33]} 35. Qh4 {[%emt 0:00:41]} f4 {[%emt 0:00:30]} 36. Nc2 {[%emt 0:00:22]} Rg7 {[%emt 0:01:33]} 37. Rd1 {[%emt 0:00:35]} Rf5 {[%emt 0:01:22]} 38. g4 {[%emt 0:00:33]} e3 {[%emt 0:01:18]} 39. Kh2 {[%emt 0:00:29]} f3+ {[%emt 0:01:32]} 40. Kh1 {[%emt 0:00:30]} Rfg5 41. Rge1 {[%emt 0:00:32]} e2 {[%emt 0:01:01]} 42. Rd3 {[%emt 0:00:29]} Qe4 {[%emt 0:00:26]} 43. Re3 {[%emt 0:00:20]} Qxc2 {[%emt 0:00:23]} 44. Rxf3 {[%emt 0:00:04]} Qe4 {[%emt 0:00:31]} 45. Kg2 {[%emt 0:00:17]} Rxg4+ 0-1

[Event "Tatra Limba Master 2022"]
[Site "Poronin"]
[Date "2022.01.10"]
[Round "7.5"]
[White "Bartoszczuk, Adam"]
[Black "Liskiewicz, Jakub"]
[Result "1/2-1/2"]
[ECO "B09"]
[WhiteElo "1380"]
[BlackElo "1598"]
[Annotator "NA RC"]
[PlyCount "26"]
[EventDate "2022.01.07"]
[EventType "swiss"]
[EventCountry "POL"]
[SourceTitle "playchess.com"]
[Source "ChessBase"]
[SourceQuality "1"]
[TimeControl "5400+30"]

1. e4 {[%emt 0:16:58]} g6 {[%emt 0:00:08]} 2. d4 {[%emt 0:00:38]} Bg7 {[%emt 0:00:10]} 3. Nc3 {[%emt 0:00:45]} d6 {[%emt 0:00:09]} 4. f4 {[%emt 0:00:59]} Nf6 {[%emt 0:00:23]} 5. Nf3 {[%emt 0:00:55]} O-O {[%emt 0:00:16]} 6. Bd3 {[%emt 0:01:38]} Na6 {[%emt 0:00:17]} 7. a3 {[%emt 0:01:34]} c5 {[%emt 0:00:22]} 8. d5 {[%emt 0:02:28]} Nc7 {[%emt 0:03:37]} 9. O-O {[%emt 0:01:22]} a6 {[%emt 0:02:08]} 10. a4 {[%emt 0:04:17]} b6 {[%emt 0:04:15]} 11. Bc4 {[%emt 0:05:27]} Rb8 {[%emt 0:06:20]} 12. e5 {[%emt 0:07:08]} Nfe8 {[%emt 0:03:57]} 13. Qe2 {[%emt 0:01:24]} Qd7 {[%emt 0:08:09]} 1/2-1/2

[Event "Tatra Limba Master 2022"]
[Site "Poronin"]
[Date "2022.01.10"]
[Round "7.8"]
[White "Mroz, Lena"]
[Black "Wysocki, Mateusz"]
[Result "0-1"]
[ECO "B01"]
[WhiteElo "1835"]
[BlackElo "1848"]
[Annotator "NA RC"]
[PlyCount "86"]
[EventDate "2022.01.07"]
[EventType "swiss"]
[EventCountry "POL"]
[SourceTitle "playchess.com"]
[Source "ChessBase"]
[SourceQuality "1"]
[TimeControl "5400+30"]

{[%evp 8,86,54,-7,39,-16,33,53,50,25,35,29,36,-39,42,4,75,55,66,90,86,33,34,39,36,15,16,7,14,9,19,0,0,6,0,-10,0,0,29,0,0,12,0,-7,-7,-25,-12,-83,-43,-27,-40,-66,-17,-25,-3,32767,32767,32767,32767,-3,26,10,0,-29,-13,32767,32767,32767,32767,32767,-256,-258,-294,-396,-445,-422,-436,-654,-707,-1517,-1755]} 1. e4 {[%emt 0:00:02]} d5 {[%emt 0:00:40]} 2. exd5 {[%emt 0:00:19]} Nf6 {[%emt 0:00:08]} 3. d4 {[%emt 0:02:22]} Nxd5 {[%emt 0:00:06]} 4. c4 {[%emt 0:02:02]} Nb6 {[%emt 0:00:11]} 5. h3 {[%emt 0:04:47]} Bf5 {[%emt 0:09:39]} (5... e5 $11) 6. Be3 {[%emt 0:10:27]} (6. Nf3 $14) 6... Nc6 {[%emt 0:03:29]} (6... e5 $5 {[%cal Re5d4]}) 7. Nc3 {[%emt 0:03:34]} e6 {[%emt 0:02:33]} 8. Rc1 {[%emt 0:19:42]} Be7 {[%emt 0:02:46]} 9. Nf3 {[%emt 0:04:03]} O-O {[%emt 0:00:30]} 10. Bd3 {[%emt 0:01:58] [#]} (10. Be2 $14) 10... Bxd3 {[%emt 0:03:14]} (10... Nxd4 $1 $11 11. Bxd4 (11. Nxd4 Bxd3 12. Qxd3 e5 $11) 11... Bxd3 12. Qxd3 c5) 11. Qxd3 {[%emt 0:00:10]} Nb4 {[%emt 0:00:12]} (11... f5 $11) 12. Qe2 {[%emt 0:01:51]} c5 {[%emt 0:00:07] [#]} 13. O-O $1 {[%emt 0:02:10]} cxd4 {[%emt 0:05:23]} 14. Bxd4 {[%emt 0:01:15]} Nc6 {[%emt 0:02:35]} 15. Be3 {[%emt 0:03:55]} a6 {[%emt 0:12:13]} 16. Rfd1 {[%emt 0:06:38]} Qc7 {[%emt 0:04:28]} 17. b3 {[%emt 0:07:18]} Rad8 {[%emt 0:01:07]} 18. Ne4 {[%emt 0:05:44]} Nd7 {[%emt 0:03:19]} 19. Kh1 {[%emt 0:06:33]} h6 {[%emt 0:03:55]} 20. Bd2 {[%emt 0:08:02]} Rfe8 {[%emt 0:06:05]} 21. Bc3 {[%emt 0:00:37]} Nf8 {[%emt 0:09:54]} 22. Qb2 {[%emt 0:01:33]} Qf4 {[%emt 0:01:22]} 23. Ng3 {[%emt 0:02:09]} ({Avoid the trap} 23. Bxg7 $2 Qxe4 24. Bxh6 (24. Rxd8 $2 Rxd8 25. Bxh6 e5 $19) 24... e5 $19) 23... f6 {[%emt 0:01:38]} 24. Bd2 {[%emt 0:01:39]} Qc7 {[%emt 0:02:14]} 25. Bc3 {[%emt 0:01:38]} e5 {[%emt 0:01:08]} 26. Nf5 {[%emt 0:00:42]} Ne6 {[%emt 0:00:45]} 27. Kg1 {[%emt 0:01:18]} (27. b4 $11 {keeps the balance.}) 27... Bf8 {[%emt 0:00:48]} (27... Nf4 $17 28. Ra1 Bb4 29. Bxb4 Nxb4) 28. Ne3 {[%emt 0:00:50]} Qf7 {[%emt 0:00:53]} 29. Nd5 {[%emt 0:00:38] [#]} Bc5 {[%emt 0:03:51]} (29... e4 $1 $17 {[%cal Re4f3]} 30. Nh4 Nc5) 30. b4 {[%emt 0:00:24]} Bd4 {[%emt 0:00:27]} 31. Bxd4 {[%emt 0:00:28]} Ncxd4 {[%emt 0:00:06]} 32. Nxd4 {[%emt 0:00:11]} Nxd4 {[%emt 0:00:05]} 33. Kh1 {[%emt 0:01:17]} Rc8 {[%emt 0:01:25]} 34. a3 {[%emt 0:00:32]} Qe6 {[%emt 0:01:19]} 35. Qb1 {[%emt 0:00:32]} b5 {[%emt 0:01:37]} 36. Ne3 {[%emt 0:00:25]} bxc4 {[%emt 0:00:39]} 37. Qb2 {[%emt 0:00:36]} Rc7 {[%emt 0:00:59]} 38. Rc3 {[%emt 0:00:28]} Nb5 {[%emt 0:02:11]} 39. Rc2 {[%emt 0:00:32]} c3 {[%emt 0:04:52]} 40. Qc1 {[%emt 0:00:21]} (40. Qa2 {was called for.}) 40... Rec8 {[%emt 0:00:28]} 41. Qa1 {[%emt 0:00:38]} Nd4 {[%emt 0:00:19]} 42. Ra2 {[%emt 0:00:34]} (42. Rcc1 $142) 42... c2 {[%emt 0:00:41]} 43. Rc1 {[%emt 0:00:19]} Nb3 $19 {[%emt 0:00:09]} 0-1

[Event "Tatra Limba Master 2022"]
[Site "Poronin"]
[Date "2022.01.10"]
[Round "7.10"]
[White "Radzimski, Antoni"]
[Black "Rekuc, Patryk"]
[Result "0-1"]
[ECO "B32"]
[WhiteElo "1613"]
[BlackElo "1662"]
[Annotator "NA RC"]
[PlyCount "76"]
[EventDate "2022.01.07"]
[EventType "swiss"]
[EventCountry "POL"]
[SourceTitle "playchess.com"]
[Source "ChessBase"]
[SourceQuality "1"]
[TimeControl "5400+30"]

1. e4 {[%emt 0:00:01]} c5 {[%emt 0:00:14]} 2. Nf3 {[%emt 0:00:05]} Nc6 {[%emt 0:00:05]} 3. d4 {[%emt 0:00:08]} cxd4 {[%emt 0:00:05]} 4. Nxd4 {[%emt 0:00:04]} e5 {[%emt 0:00:04]} 5. Nb5 {[%emt 0:00:20]} d6 {[%emt 0:00:05]} 6. c4 {[%emt 0:00:15]} Be6 {[%emt 0:00:05]} 7. N1c3 {[%emt 0:00:20]} a6 {[%emt 0:00:10]} 8. Na3 {[%emt 0:00:07]} Nf6 {[%emt 0:00:08]} 9. Be2 {[%emt 0:00:10]} Be7 {[%emt 0:00:11]} 10. O-O {[%emt 0:00:17]} O-O {[%emt 0:00:13]} 11. Nc2 {[%emt 0:00:34]} Rc8 {[%emt 0:01:56]} 12. b3 {[%emt 0:00:53]} b5 {[%emt 0:10:12]} 13. cxb5 {[%emt 0:00:30]} Na7 {[%emt 0:00:06]} 14. Bb2 {[%emt 0:10:16]} Nxb5 {[%emt 0:00:54]} 15. Bxb5 {[%emt 0:01:54]} axb5 {[%emt 0:00:04]} 16. Qd3 {[%emt 0:08:16]} Qb6 {[%emt 0:02:34]} 17. Ne3 {[%emt 0:02:05]} Qb7 {[%emt 0:03:40]} 18. Rad1 {[%emt 0:04:10]} Ra8 {[%emt 0:07:58]} 19. Ra1 {[%emt 0:05:12]} Rfc8 {[%emt 0:02:37]} 20. Ncd5 {[%emt 0:01:57]} Nxd5 {[%emt 0:02:32]} 21. exd5 {[%emt 0:00:58]} Bd7 {[%emt 0:00:15]} 22. f4 {[%emt 0:03:46]} Re8 {[%emt 0:08:13]} 23. f5 {[%emt 0:06:15]} f6 {[%emt 0:05:43]} 24. h4 {[%emt 0:02:39]} Bd8 {[%emt 0:01:38]} 25. h5 {[%emt 0:01:36]} Bb6 {[%emt 0:08:59]} 26. Kh1 {[%emt 0:07:48]} Bxe3 {[%emt 0:00:14]} 27. Qxe3 {[%emt 0:00:06]} h6 {[%emt 0:05:18]} 28. Qe4 {[%emt 0:01:16]} Rec8 {[%emt 0:00:40]} 29. a3 {[%emt 0:11:13]} Be8 {[%emt 0:00:22]} 30. Rf3 {[%emt 0:06:56]} Bxh5 {[%emt 0:02:29]} 31. Rh3 {[%emt 0:00:54]} Bf7 {[%emt 0:01:04]} 32. Rd1 {[%emt 0:00:57]} Rc5 {[%emt 0:00:43]} 33. Rg3 {[%emt 0:01:11]} Bxd5 {[%emt 0:06:08]} 34. Qh4 {[%emt 0:00:15]} Rc2 {[%emt 0:11:27]} 35. Qxf6 {[%emt 0:01:38]} Rxg2 {[%emt 0:00:44]} 36. Rxd5 {[%emt 0:00:24]} Rxg3 {[%emt 0:00:09]} 37. Qe6+ {[%emt 0:00:47]} Qf7 {[%emt 0:06:25]} 38. Rxd6 {[%emt 0:00:07]} Re8 {[%emt 0:01:09]} 0-1